bitfinex-derivatives/quotes_SOLF0:USTF0_20241212
["timestamp","ask_amount","ask_price","bid_price","bid_amount"]
[1734011969223,2.173,230.04,230.0,2.1733]
[1734011969618,2.173,230.04,229.98,2.8027]
[1734011969824,12.89590224,230.11,230.01,2.1732]
[1734011970133,2.1729,230.05,230.01,2.1732]
[1734011972525,3.18,230.13,229.98,15.69860224]
[1734011972827,3.18,230.16,230.01,12.89590224]
[1734011973025,3.18,230.16,229.98,2.8027]
[1734011973026,2.1719,230.15,230.04,12.89590224]
[1734011973227,3.18,230.18,230.07,12.89590224]
[1734011973923,2.1718,230.16,230.12,2.1721]
[1734011974122,3.18,230.19,230.08,2.8205]
[1734011974729,3.18,230.19,230.05,2.8069]
[1734011974730,12.89590224,230.17,230.05,2.8069]
[1734011976229,2.1725,230.1,230.05,4.9797]
[1734011976426,12.89590224,230.17,230.05,2.1728]
[1734011976622,2.1721,230.13,230.06,2.1727]
[1734011976827,12.89590224,230.17,230.06,2.1727]
[1734011977027,12.89590224,230.17,230.02,8.04572613]
[1734011977226,12.89590224,230.17,230.07,2.1726]
[1734011977425,12.89590224,230.17,230.04,12.89590224]
[1734011977729,2.1721,230.14,230.07,2.1727]
[1734011977924,12.89590224,230.17,230.07,2.1727]
[1734011978727,12.89590224,230.17,230.02,8.04572613]
[1734011978728,12.89590224,230.17,230.05,2.1728]
[1734011979730,2.1725,230.1,230.02,8.04572613]
[1734011979936,2.1725,230.1,230.06,2.1727]
[1734011980432,2.1726,230.09,230.02,8.04572613]
[1734011980624,12.89590224,230.17,230.02,8.04572613]
[1734011981024,12.89590224,230.17,230.03,2.173]
[1734011981025,2.1727,230.07,230.03,2.173]
[1734011981230,2.1727,230.07,230.02,8.04572613]
[1734011981628,3.18,230.12,229.98,12.89590224]
[1734011981825,3.18,230.12,229.97,3.13235]
[1734011981826,12.89590224,230.11,229.97,3.13235]
[1734011982031,2.1734,230.0,229.97,0.35315]
[1734011982237,16.07590224,230.05,229.97,0.35315]
[1734011983833,2.1731,230.03,229.97,0.35315]
[1734011984042,16.07590224,230.05,229.97,0.35315]
[1734011984341,2.1729,230.04,229.99,2.1733]
[1734011984633,3.16,230.06,229.97,0.35315]
[1734011984834,3.16,230.06,230.0,2.1733]
[1734011984835,5.3328,230.06,230.0,2.1733]
[1734011985033,3.16,230.06,229.98,12.89590224]
[1734011985538,3.16,230.11,229.98,12.89590224]
[1734011986236,2.1726,230.08,229.98,12.89590224]
[1734011986831,2.1727,230.07,230.02,2.1731]
[1734011987030,2.1727,230.07,229.98,12.89590224]
[1734011987229,2.1727,230.07,230.0,2.1733]
[1734011987438,2.1727,230.07,229.98,12.89590224]
[1734011987933,5.3323,230.11,230.06,2.1727]
[1734011988133,3.16,230.16,230.01,12.89590224]
[1734011988834,2.1725,230.09,230.01,12.89590224]
[1734011989135,3.16,230.16,230.01,12.89590224]
[1734011990040,2.1723,230.11,230.07,2.1727]
[1734011990740,3.16,230.16,230.03,2.858]
[1734011992038,12.89590224,230.14,230.03,2.858]
[1734011992738,2.1726,230.08,230.04,2.1729]
[1734011994239,2.1725,230.09,230.05,2.1728]
[1734011994639,3.16,230.16,230.03,2.858]
[1734011994831,2.1724,230.11,230.07,2.1726]
[1734011995033,3.16,230.16,230.03,5.7734]
[1734011995235,2.1723,230.11,230.04,2.1729]
[1734011995432,12.89590224,230.14,230.04,2.1729]
[1734011995936,2.1725,230.09,230.04,2.1729]
[1734011997440,2.1727,230.07,230.03,2.858]
[1734011997643,12.89590224,230.14,230.03,2.858]
[1734011997950,12.89590224,230.14,229.98,2.9154]
[1734011998136,12.89590224,230.14,229.98,5.6767]
[1734011998337,2.1727,230.07,230.02,2.1731]
[1734011998648,2.1727,230.07,229.98,5.6767]
[1734011999645,12.89590224,230.14,229.98,5.6767]
[1734011999946,2.1728,230.06,230.02,2.1731]
[1734012000147,3.16,230.08,229.98,5.6767]
[1734012000442,16.05590224,230.08,229.93,2.7686]
[1734012000839,2.173,230.04,229.97,2.1735]
[1734012001042,3.16,230.08,229.95,12.89590224]
[1734012001245,3.16,230.08,229.98,12.89590224]
[1734012001446,2.1731,230.03,229.99,2.1734]
[1734012002041,2.1731,230.03,229.98,12.89590224]
[1734012002042,3.16,230.08,230.03,2.173]
[1734012002246,16.05590224,230.08,229.94,0.30062]
[1734012002639,16.05590224,230.08,229.94,13.19652224]
[1734012002845,2.1731,230.03,229.99,2.1734]
[1734012003343,3.16,230.08,229.97,12.89590224]
[1734012003856,3.16,230.12,229.97,12.89590224]
[1734012004043,12.89590224,230.08,229.94,13.19652224]
[1734012004249,12.89590224,230.05,229.94,0.30062]
[1734012004448,3.16,230.04,229.94,0.30062]
[1734012004649,2.1737,229.97,229.94,0.30062]
[1734012006848,3.16,230.04,229.94,0.30062]
[1734012006849,2.1738,229.95,229.94,0.30062]
[1734012007342,12.89590224,230.02,229.94,0.30062]
[1734012007548,5.6261,230.07,229.94,0.30062]
[1734012007549,12.89590224,230.05,229.94,0.30062]
[1734012007744,3.16,230.04,229.94,0.30062]
[1734012007951,2.1734,229.99,229.94,0.30062]
[1734012008851,3.16,230.04,229.94,0.30062]
[1734012008852,2.1736,229.98,229.94,0.30062]
[1734012009450,2.1737,229.96,229.94,0.30062]
[1734012009748,12.89590224,230.02,229.94,0.30062]
[1734012009951,2.1738,229.95,229.94,0.30062]
[1734012011157,12.89590224,229.96,229.79,12.89590224]
[1734012011854,2.1744,229.89,229.82,5.2599441]
[1734012012453,12.89590224,229.96,229.82,18.15584634]
[1734012012850,12.89590224,229.96,229.84,2.1747]
[1734012013057,2.1745,229.88,229.84,2.1747]
[1734012013258,3.16,229.89,229.8,5.7107]
[1734012013555,2.1746,229.87,229.8,5.0675]
[1734012013752,3.16,229.89,229.8,5.0675]
[1734012013753,3.16,229.89,229.8,2.1752]
[1734012013951,3.16,229.89,229.76,12.89590224]
[1734012014155,3.16,229.89,229.79,12.89590224]
[1734012014647,3.14,229.97,229.82,12.89590224]
[1734012014850,5.7765,229.98,229.85,12.89590224]
[1734012015149,5.7765,229.98,229.86,2.1746]
[1734012015150,2.1739,229.94,229.86,2.1746]
[1734012015354,18.67240224,229.98,229.85,12.89590224]
[1734012015551,5.7765,229.98,229.85,12.89590224]
[1734012015756,2.1737,229.96,229.91,2.1742]
[1734012016352,5.7765,229.98,229.85,12.89590224]
[1734012016550,3.14,229.98,229.85,12.89590224]
[1734012017255,16.03590224,229.98,229.85,12.89590224]
[1734012017459,16.03590224,229.98,229.83,8.5124]
[1734012017659,3.14,229.97,229.83,8.5124]
[1734012017854,2.1741,229.92,229.88,2.1744]
[1734012018056,3.14,229.97,229.83,8.5124]
[1734012018452,2.1741,229.92,229.83,8.5124]
[1734012018964,3.14,229.97,229.83,8.5124]
[1734012019260,2.1742,229.91,229.86,2.1746]
[1734012019452,12.89590224,229.95,229.83,8.5124]
[1734012019655,2.1744,229.89,229.83,8.5124]
[1734012020653,2.1744,229.89,229.78,5.26056234]
[1734012020654,3.14,229.9,229.78,5.26056234]
[1734012020852,16.03590224,229.89,229.73,18.95840224]
[1734012021058,16.03590224,229.89,229.73,15.81840224]
[1734012021357,12.89590224,229.86,229.73,8.11281327]
[1734012021563,12.89590224,229.86,229.73,2.9225]
[1734012021752,12.89590224,229.86,229.74,2.1758]
[1734012021753,2.1754,229.78,229.74,2.1758]
[1734012022068,3.14,229.81,229.67,18.37760224]
[1734012022363,2.1756,229.76,229.71,2.1761]
[1734012022753,2.1755,229.78,229.67,23.62638615]
[1734012022954,12.89590224,229.86,229.7,12.89590224]
[1734012023162,3.14,229.86,229.76,12.89590224]
[1734012023655,3.14,229.86,229.77,2.6382]
[1734012024259,3.14,229.92,229.79,12.89590224]
[1734012024462,5.3141,229.92,229.86,2.1746]
[1734012024659,5.3141,229.92,229.82,12.89590224]
[1734012024862,80.79866659,229.97,229.85,12.89590224]
[1734012025067,3.14,229.96,229.92,2.1741]
[1734012025273,3.14,229.98,229.88,12.89590224]
[1734012025460,13.06516224,230.04,229.91,12.89590224]
[1734012025665,3.14,230.03,229.91,12.89590224]
[1734012026070,2.1734,229.99,229.93,2.1739]
[1734012026370,3.14,230.01,229.89,2.6522]
[1734012026565,18.0021426,230.02,229.89,2.6522]
[1734012026766,12.89590224,229.99,229.86,5.565]
[1734012027270,12.89590224,229.93,229.78,12.89590224]
[1734012027464,12.89590224,229.93,229.79,2.8115]
[1734012027465,3.14,229.92,229.79,2.8115]
[1734012027667,2.1744,229.89,229.81,2.1751]
[1734012027871,3.14,229.92,229.79,8.14566854]
[1734012028262,3.14,229.92,229.8,2.1752]
[1734012028263,2.1746,229.87,229.8,2.1752]
[1734012028461,3.14,229.92,229.8,2.1752]
[1734012028870,2.1745,229.87,229.81,2.1751]
[1734012029071,12.89590224,229.9,229.81,2.1751]
[1734012029271,3.14,229.92,229.81,2.1751]
[1734012029475,2.1744,229.89,229.81,2.1751]
[1734012029668,3.14,229.92,229.81,2.1751]
[1734012029863,3.14,229.92,229.79,4.9867]
[1734012030267,3.14,229.92,229.79,2.8115]
[1734012030268,2.1748,229.85,229.79,2.8115]
[1734012030467,3.14,229.92,229.79,2.8115]
[1734012030664,2.175,229.83,229.79,2.8115]
[1734012030868,2.175,229.83,229.73,2.718]
[1734012031062,2.175,229.83,229.78,2.1754]
[1734012031265,2.175,229.83,229.69,20.62346072]
[1734012031266,3.14,229.85,229.62,4.3538]
[1734012031474,2.1754,229.79,229.64,20.62346072]
[1734012031774,5.3668,229.88,229.72,5.18524757]
[1734012031967,3.14,229.87,229.73,8.2635]
[1734012032671,20.62346072,229.85,229.73,8.2635]
[1734012032870,20.62346072,229.85,229.73,5.5267]
[1734012033072,2.1754,229.78,229.73,5.5267]
[1734012033671,2.1754,229.78,229.73,2.6536]
[1734012034667,2.1754,229.78,229.74,2.1758]
[1734012034872,20.62346072,229.85,229.74,2.1758]
[1734012034873,3.14,229.8,229.74,2.1758]
[1734012035071,3.14,229.8,229.65,2.7174]
[1734012035274,3.14,229.8,229.66,2.8462]
[1734012035676,20.62346072,229.77,229.63,2.1768]
[1734012035877,2.7546,229.76,229.63,2.1768]
[1734012036074,2.1764,229.68,229.6,2.8462]
[1734012036776,2.1765,229.67,229.61,2.1769]
[1734012037676,2.1763,229.68,229.6,2.8462]
[1734012038180,2.1763,229.68,229.61,2.177]
[1734012038375,3.14,229.7,229.6,2.8462]
[1734012038772,2.1767,229.65,229.58,2.1773]
[1734012039379,2.1768,229.64,229.58,2.1773]
[1734012040274,2.1768,229.64,229.56,2.7174]
[1734012040275,3.14,229.7,229.56,2.7174]
[1734012040980,5.3162,229.7,229.56,2.7174]
[1734012041282,2.7546,229.76,229.59,20.62346072]
[1734012041479,2.7422,229.79,229.6,5.571]
[1734012041480,3.14,229.75,229.6,5.571]
[1734012041779,3.14,229.75,229.71,2.176]
[1734012041977,3.14,229.75,229.63,20.62346072]
[1734012042376,3.14,229.78,229.72,2.176]
[1734012042578,3.14,229.78,229.64,3.14]
[1734012043676,3.14,229.78,229.75,2.1756]
[1734012043871,3.14,229.78,229.67,20.62346072]
[1734012044077,3.14,229.78,229.68,2.8609]
[1734012044476,3.14,229.78,229.71,2.1761]
[1734012044683,3.14,229.78,229.68,2.8609]
[1734012045179,20.62346072,229.77,229.6,5.571]
[1734012045377,23.32286072,229.77,229.6,5.571]
[1734012046583,23.32286072,229.77,229.64,2.1766]
[1734012047177,23.32286072,229.77,229.6,5.571]
[1734012047680,23.32286072,229.77,229.6,8.691]
[1734012047882,3.12,229.76,229.6,8.691]
[1734012048380,3.12,229.76,229.7,2.1761]
[1734012048582,3.12,229.76,229.6,8.691]
[1734012049479,2.1759,229.73,229.6,8.691]
[1734012049680,3.12,229.76,229.6,8.691]
[1734012050077,2.1759,229.74,229.68,2.1763]
[1734012050281,2.1759,229.74,229.6,8.691]
[1734012050476,3.12,229.76,229.6,8.691]
[1734012050677,2.1759,229.73,229.68,2.1763]
[1734012050876,3.12,229.76,229.6,8.691]
[1734012051076,3.12,229.76,229.6,5.571]
[1734012051281,2.1761,229.71,229.65,2.1765]
[1734012051479,3.12,229.76,229.6,5.571]
[1734012053284,2.176,229.72,229.65,2.1766]
[1734012053482,3.12,229.76,229.65,2.1766]
[1734012053683,3.12,229.76,229.6,5.571]
[1734012054083,2.1763,229.69,229.63,2.1767]
[1734012054285,3.12,229.7,229.6,5.571]
[1734012054580,3.12,229.7,229.56,2.8609]
[1734012054581,2.177,229.62,229.56,2.1774]
[1734012054784,3.12,229.63,229.56,2.1774]
[1734012055780,3.12,229.63,229.53,5.23245565]
[1734012056589,3.12,229.63,229.57,2.1773]
[1734012056889,5.2969,229.63,229.53,5.23245565]
[1734012057280,3.12,229.63,229.53,5.23245565]
[1734012057482,2.177,229.61,229.56,2.1775]
[1734012057681,3.12,229.63,229.56,2.1775]
[1734012057988,3.12,229.63,229.49,8.0059]
[1734012057989,2.1775,229.56,229.52,2.1779]
[1734012058181,3.12,229.63,229.49,8.0059]
[1734012058783,20.62346072,229.6,229.39,20.62346072]
[1734012058987,3.12,229.63,229.39,20.62346072]
[1734012058988,20.62346072,229.56,229.39,20.62346072]
[1734012059286,3.12,229.55,229.46,2.1784]
[1734012059484,3.12,229.55,229.4,2.8079]
[1734012060285,3.12,229.55,229.42,5.35515641]
[1734012061084,3.12,229.55,229.43,20.62346072]
[1734012061295,5.591,229.66,229.47,20.62346072]
[1734012061296,20.62346072,229.64,229.47,20.62346072]
[1734012061488,2.1769,229.62,229.56,2.1774]
[1734012061684,3.12,229.63,229.48,5.6984]
[1734012062289,3.12,229.64,229.48,5.6984]
[1734012062994,23.74346072,229.64,229.48,5.6984]
[1734012063394,2.1775,229.56,229.51,2.178]
[1734012063598,3.12,229.58,229.48,5.6984]
[1734012063784,3.12,229.57,229.48,5.6984]
[1734012064191,5.2975,229.57,229.51,2.178]
[1734012064492,3.12,229.57,229.51,2.178]
[1734012064693,3.12,229.57,229.48,5.6984]
[1734012064897,2.1776,229.55,229.5,2.178]
[1734012065191,3.12,229.57,229.48,5.6984]
[1734012065593,2.1776,229.55,229.48,5.6984]
[1734012065794,3.12,229.57,229.42,5.35515641]
[1734012065995,2.178,229.51,229.45,2.1785]
[1734012066196,23.28676072,229.56,229.45,2.1785]
[1734012066694,20.62346072,229.52,229.41,5.5927]
[1734012066892,3.14,229.51,229.3,70.80094036]
[1734012067091,2.1786,229.44,229.39,2.1791]
[1734012068389,3.14,229.51,229.34,5.33173332]
[1734012068693,3.14,229.51,229.31,11.4994]
[1734012068694,20.62346072,229.48,229.31,8.3594]
[1734012069088,3.14,229.51,229.31,8.3594]
[1734012069599,3.14,229.5,229.34,20.62346072]
[1734012069792,3.14,229.5,229.35,3.14]
[1734012069991,3.14,229.5,229.45,2.1785]
[1734012070300,3.14,229.5,229.35,3.14]
[1734012071797,2.6633,229.56,229.38,20.62346072]
[1734012071995,3.14,229.57,229.38,20.62346072]
[1734012072201,3.14,229.57,229.42,20.62346072]
[1734012072396,3.14,229.57,229.43,5.5799]
[1734012073497,2.1776,229.55,229.43,5.5799]
[1734012074000,3.14,229.57,229.43,5.5799]
[1734012074207,20.62346072,229.62,229.44,3.12]
[1734012074402,3.12,229.61,229.55,2.1776]
[1734012074593,3.12,229.61,229.45,23.31576072]
[1734012074800,3.12,229.61,229.45,28.6456354]
[1734012075396,0.52077,229.7,229.49,20.62346072]
[1734012075700,3.12,229.69,229.57,2.1773]
[1734012075895,3.12,229.69,229.58,5.4179]
[1734012076302,20.62346072,229.68,229.58,2.7674]
[1734012076600,3.12,229.69,229.58,2.7674]
[1734012076806,0.52077,229.7,229.58,2.7674]
[1734012076997,3.64077,229.7,229.58,2.7674]
[1734012077898,3.64077,229.7,229.57,3.12]
[1734012077899,20.62346072,229.67,229.51,2.6505]
[1734012078102,20.62346072,229.63,229.51,2.6505]
[1734012078301,20.62346072,229.67,229.51,2.6505]
[1734012078497,3.12,229.66,229.51,2.6505]
[1734012078900,2.1767,229.64,229.58,2.1773]
[1734012079094,3.12,229.66,229.51,2.6505]
[1734012079598,3.12,229.66,229.52,2.1778]
[1734012079599,2.1774,229.57,229.52,2.1778]
[1734012080002,3.12,229.6,229.51,2.6505]
[1734012080203,2.1773,229.58,229.51,2.6505]
[1734012080906,3.12,229.6,229.51,2.6505]
[1734012081201,3.12,229.65,229.51,2.6505]
[1734012081403,2.1768,229.64,229.57,2.1774]
[1734012081603,1.0,229.69,229.51,23.27396072]
[1734012081813,1.0,229.69,229.51,2.6505]
[1734012081814,4.12,229.69,229.51,2.6505]
[1734012082111,3.12,229.69,229.51,2.6505]
[1734012082715,2.1768,229.63,229.57,2.1774]
[1734012082910,2.1768,229.63,229.51,2.6505]
[1734012082911,3.12,229.63,229.51,2.6505]
[1734012083413,2.1772,229.59,229.54,2.1776]
[1734012084215,3.12,229.63,229.51,2.6505]
[1734012084512,25.91151607,229.71,229.51,2.6505]
[1734012084513,3.12,229.68,229.51,2.6505]
[1734012084909,20.62346072,229.67,229.51,2.6505]
[1734012085215,20.62346072,229.67,229.54,2.1776]
[1734012085216,2.1772,229.59,229.54,2.1776]
[1734012085411,2.1772,229.59,229.51,2.6505]
[1734012085412,3.12,229.61,229.51,2.6505]
[1734012085605,5.28805535,229.71,229.51,2.6505]
[1734012085811,3.12,229.7,229.51,2.6505]
[1734012086015,25.91151607,229.71,229.52,20.62346072]
[1734012086309,3.12,229.7,229.53,3.12]
[1734012086516,2.1765,229.67,229.61,2.177]
[1734012087014,3.12,229.7,229.53,3.12]
[1734012087605,2.177,229.61,229.55,2.1775]
[1734012087811,3.12,229.63,229.51,2.6505]
[1734012088216,2.1771,229.61,229.56,2.1774]
[1734012088520,2.1771,229.61,229.51,2.6505]
[1734012088716,3.12,229.63,229.54,2.1776]
[1734012089213,3.12,229.63,229.51,2.6505]
[1734012089416,3.12,229.63,229.55,2.1776]
[1734012090009,2.177,229.62,229.57,2.1774]
[1734012090317,25.91151607,229.71,229.54,3.12]
[1734012090509,8.40805535,229.71,229.54,3.12]
[1734012090720,3.12,229.71,229.57,20.62346072]
[1734012091012,3.12,229.73,229.58,5.5157]
[1734012091216,3.12,229.73,229.66,2.1765]
[1734012091217,2.1761,229.71,229.66,2.1765]
[1734012091514,3.12,229.73,229.58,5.5157]
[1734012092718,2.1763,229.69,229.64,2.1767]
[1734012092920,3.12,229.73,229.58,5.5157]
[1734012093427,20.62346072,229.71,229.58,5.5157]
[1734012094814,20.62346072,229.71,229.58,2.6885]
[1734012095115,20.62346072,229.71,229.52,3.12]
[1734012095116,20.62346072,229.67,229.51,2.6505]
[1734012095322,2.1773,229.58,229.54,2.1777]
[1734012095822,2.177,229.62,229.53,2.1777]
[1734012096017,3.12,229.66,229.51,2.6505]
[1734012097320,2.1775,229.57,229.52,2.1779]
[1734012097510,3.12,229.59,229.52,2.1779]
[1734012097717,3.12,229.59,229.51,2.6505]
[1734012097718,3.12,229.6,229.51,2.6505]
[1734012098019,3.12,229.6,229.38,4.3582]
[1734012098020,20.62346072,229.55,229.34,24.01375129]
[1734012098215,20.62346072,229.55,229.37,5.5084]
[1734012098216,3.12,229.54,229.37,5.5084]
[1734012098411,2.1784,229.46,229.37,5.5084]
[1734012098613,2.1784,229.46,229.38,5.16834169]
[1734012098815,3.12,229.47,229.38,5.16834169]
[1734012099009,3.12,229.47,229.37,5.5084]
[1734012099010,2.1786,229.45,229.4,2.1789]
[1734012099212,3.12,229.47,229.4,2.1789]
[1734012099415,2.1785,229.45,229.4,2.1789]
[1734012099612,3.12,229.47,229.38,2.1791]
[1734012099823,3.12,229.47,229.37,5.5084]
[1734012100418,20.62346072,229.51,229.37,5.5084]
[1734012100622,3.12,229.46,229.37,5.5084]
[1734012100820,3.12,229.46,229.41,2.1788]
[1734012101520,5.2984,229.46,229.39,2.179]
[1734012101726,3.12,229.46,229.37,5.5084]
[1734012103124,3.12,229.46,229.41,2.1789]
[1734012103527,5.2985,229.46,229.37,5.5084]
[1734012103915,3.1,229.49,229.37,5.5084]
[1734012104121,3.1,229.49,229.37,26.13186072]
[1734012104524,3.1,229.49,229.45,2.1785]
[1734012104724,3.1,229.49,229.37,29.23186072]
[1734012104924,3.1,229.52,229.37,29.23186072]
[1734012105126,2.178,229.51,229.45,2.1785]
[1734012105625,3.1,229.52,229.37,29.23186072]
[1734012106733,3.1,229.53,229.37,29.23186072]
[1734012107323,5.2778,229.53,229.37,29.23186072]
[1734012108025,2.1779,229.52,229.37,29.23186072]
[1734012108227,3.1,229.53,229.37,29.23186072]
[1734012108619,2.1782,229.49,229.37,29.23186072]
[1734012109128,5.2779,229.53,229.46,2.1783]
[1734012109321,3.1,229.53,229.46,2.1783]
[1734012109523,3.1,229.53,229.39,16.04466655]
[1734012110630,2.1779,229.52,229.47,2.1783]
[1734012111126,3.1,229.53,229.39,16.04466655]
[1734012111322,3.1,229.53,229.37,5.5084]
[1734012111523,16.04466655,229.49,229.36,2.6938]
[1734012111823,2.8032,229.48,229.36,2.6938]
[1734012112026,3.1,229.47,229.36,2.6938]
[1734012113131,3.1,229.47,229.37,2.1793]
[1734012113833,3.1,229.47,229.36,2.6938]
[1734012113834,2.179,229.4,229.36,2.6938]
[1734012114035,3.1,229.47,229.36,2.6938]
[1734012114429,2.179,229.41,229.36,4.8731]
[1734012114729,3.1,229.41,229.29,5.19512655]
[1734012114932,19.14466655,229.41,229.3,2.1799]
[1734012115631,19.14466655,229.41,229.28,2.8922]
[1734012116040,19.14466655,229.41,229.28,5.0723]
[1734012116226,19.14466655,229.41,229.28,2.8922]
[1734012116841,16.04466655,229.41,229.28,2.8922]
[1734012117031,5.15484209,229.44,229.29,16.04466655]
[1734012117231,3.1,229.43,229.29,16.04466655]
[1734012117737,3.1,229.43,229.36,2.1794]
[1734012117738,2.179,229.4,229.36,2.1794]
[1734012118335,3.1,229.43,229.29,16.04466655]
[1734012118533,3.1,229.43,229.28,2.8922]
[1734012118733,3.1,229.43,229.34,2.1796]
[1734012118934,3.1,229.43,229.28,2.8922]
[1734012119532,2.1794,229.37,229.32,2.1797]
[1734012119832,5.15484209,229.44,229.28,2.8922]
[1734012120032,3.1,229.43,229.36,2.1793]
[1734012120429,3.1,229.42,229.29,16.04466655]
[1734012120630,1.0,229.46,229.29,16.04466655]
[1734012120843,1.0,229.46,229.33,16.04466655]
[1734012120844,3.1,229.46,229.33,16.04466655]
[1734012121032,3.1,229.46,229.34,5.8163]
[1734012121835,3.1,229.48,229.34,5.8163]
[1734012122137,2.875,229.54,229.37,16.04466655]
[1734012122343,3.1,229.53,229.38,2.8082]
[1734012122536,2.1782,229.49,229.44,2.1786]
[1734012123342,2.1781,229.5,229.45,2.1785]
[1734012124938,2.5916,229.6,229.41,16.04466655]
[1734012125343,8.37241309,229.56,229.41,16.04466655]
[1734012125547,8.37241309,229.56,229.4,3.1]
[1734012125548,16.04466655,229.61,229.45,16.04466655]
[1734012125846,3.1,229.65,229.49,16.04466655]
[1734012126041,2.1767,229.65,229.53,16.04466655]
[1734012126240,5.8042,229.68,229.53,16.04466655]
[1734012126743,2.1766,229.66,229.53,16.04466655]
[1734012127447,2.7042,229.68,229.53,16.04466655]
[1734012127448,2.1766,229.65,229.59,2.1771]
[1734012127842,2.1766,229.65,229.53,16.04466655]
[1734012128243,0.52077,229.62,229.53,16.04466655]
[1734012128639,0.52077,229.62,229.61,2.177]
[1734012128943,0.52077,229.62,229.57,16.04466655]
[1734012128944,3.1,229.74,229.57,19.14466655]
[1734012129243,16.04466655,229.76,229.63,2.1768]
[1734012129442,19.14466655,229.76,229.58,5.6394]
[1734012129844,2.1762,229.7,229.64,2.1767]
[1734012130046,5.2799474,229.73,229.58,5.6394]
[1734012130247,16.04466655,229.72,229.58,5.6394]
[1734012130437,2.1768,229.63,229.58,5.6394]
[1734012130641,3.1,229.7,229.58,5.6394]
[1734012131245,2.1766,229.65,229.59,2.1772]
[1734012131549,3.1,229.7,229.58,5.6394]
[1734012132741,16.04466655,229.8,229.61,16.04466655]
[1734012133046,16.04466655,229.8,229.62,3.1]
[1734012133047,3.1,229.79,229.62,3.1]
[1734012133246,3.1,229.79,229.65,16.04466655]
[1734012133846,2.1757,229.76,229.69,2.1763]
[1734012134148,16.04466655,229.8,229.66,2.808]
[1734012134550,2.1756,229.76,229.66,2.808]
[1734012135048,16.04466655,229.8,229.66,2.808]
[1734012135049,21.22210421,229.8,229.66,2.808]
[1734012135549,21.22210421,229.8,229.66,4.9845]
[1734012136246,21.22210421,229.8,229.67,2.1764]
[1734012137042,16.04466655,229.75,229.58,5.6394]
[1734012137246,16.04466655,229.79,229.62,2.7462]
[1734012137752,16.04466655,229.75,229.62,2.7462]
[1734012138059,16.04466655,229.71,229.58,8.7394]
[1734012138249,3.1,229.7,229.58,8.7394]
[1734012138559,2.1768,229.64,229.58,10.9166]
[1734012138741,2.1768,229.64,229.58,7.8166]
[1734012138946,2.1768,229.64,229.58,5.6394]
[1734012139150,2.1768,229.64,229.59,2.1772]
[1734012139342,2.1768,229.64,229.58,5.6394]
[1734012139546,2.1766,229.66,229.6,2.1771]
[1734012139742,2.8886,229.73,229.58,5.6394]
[1734012139954,2.8886,229.73,229.61,16.04466655]
[1734012140750,3.1,229.76,229.66,2.1765]
[1734012140947,3.1,229.76,229.63,3.1]
[1734012141344,2.1758,229.74,229.7,2.1762]
[1734012141549,3.1,229.76,229.7,2.1762]
[1734012141748,2.8279,229.82,229.65,16.04466655]
[1734012141944,2.1757,229.75,229.66,2.9187]
[1734012142544,2.1757,229.75,229.67,2.8937]
[1734012142753,2.1756,229.77,229.72,2.1759]
[1734012143055,8.31796068,229.81,229.68,2.6723]
[1734012143456,2.1759,229.73,229.68,4.8486]
[1734012143756,2.1759,229.73,229.67,2.8937]
[1734012143757,16.04466655,229.79,229.67,2.8937]